bitfinex-derivatives/quotes_ETHF0:USTF0_20250104
["timestamp","ask_amount","ask_price","bid_price","bid_amount"]
[1736010147049,1.23639,3621.2,3621.1,3.2078]
[1736010148351,1.23639,3621.2,3621.1,4.49106326]
[1736010149254,0.9602,3621.2,3621.1,4.49106326]
[1736010150954,2.16734494,3621.3,3621.2,0.27619]
[1736010151154,2.16734494,3621.3,3621.2,1.28325326]
[1736010151347,1.42024494,3621.3,3621.2,1.75205326]
[1736010151552,1.30753763,3621.4,3621.3,0.27618]
[1736010152649,0.73546,3621.6,3621.5,0.27617]
[1736010153658,0.73546,3621.6,3621.5,5.21162479]
[1736010153845,0.4593,3621.6,3621.5,5.21162479]
[1736010155560,0.4593,3621.6,3621.5,11.72587283]
[1736010155759,0.73546,3621.6,3621.5,11.72587283]
[1736010155957,0.4593,3621.6,3621.5,11.72587283]
[1736010160456,0.9588,3621.6,3621.5,11.72587283]
[1736010161059,1.23496,3621.6,3621.5,11.44970283]
[1736010161760,1.23496,3621.6,3621.5,11.72587283]
[1736010161962,1.23496,3621.6,3621.5,0.27617]
[1736010163257,0.27617,3621.5,3621.4,0.27617]
[1736010164865,0.27617,3621.5,3621.4,5.31698282]
[1736010165566,1.23496,3621.6,3621.5,0.27617]
[1736010165764,0.9588,3621.6,3621.5,0.27617]
[1736010166359,0.4593,3621.6,3621.5,0.27617]
[1736010166565,1.107,3621.7,3621.4,2.13056673]
[1736010166761,1.107,3621.7,3621.6,3.48396]
[1736010166962,4.32158521,3621.8,3621.7,0.27615]
[1736010167565,0.9478,3621.9,3621.8,0.27614]
[1736010167765,1.89213,3622.0,3621.8,0.27614]
[1736010167766,1.38313,3622.0,3621.8,0.27614]
[1736010167966,1.107,3622.0,3621.9,0.27613]
[1736010168163,1.107,3622.0,3621.6,3.2078]
[1736010168368,1.107,3622.0,3621.8,0.27614]
[1736010168969,1.107,3622.0,3621.5,6.51424804]
[1736010169171,1.107,3622.0,3621.6,0.27616]
[1736010169363,0.27615,3621.8,3621.6,0.27616]
[1736010169664,0.9957,3621.7,3621.6,0.27616]
[1736010169968,1.5028,3621.7,3621.6,0.27616]
[1736010172365,1.5028,3621.7,3621.6,1.28288557]
[1736010172667,0.4842,3621.7,3621.6,1.28288557]
[1736010174168,0.9849,3621.9,3621.6,1.00672557]
[1736010174366,4.32158521,3622.0,3621.9,0.27613]
[1736010174568,5.77128521,3622.1,3621.8,1.00672557]
[1736010174763,5.77128521,3622.1,3622.0,1.28285557]
[1736010175172,6.04740521,3622.1,3621.9,0.27613]
[1736010175477,5.77128521,3622.1,3622.0,0.27613]
[1736010176277,1.72582,3622.1,3621.9,0.27613]
[1736010176973,2.73254557,3622.1,3621.9,0.27613]
[1736010178477,2.45642557,3622.1,3621.8,1.00672557]
[1736010178672,1.4497,3622.1,3622.0,0.27613]
[1736010178878,1.4497,3622.1,3622.0,1.28285557]
[1736010180876,4.32158521,3622.3,3622.0,1.00672557]
[1736010181079,4.32158521,3622.3,3622.2,1.28283557]
[1736010181479,4.32158521,3622.4,3622.3,0.2761]
[1736010183076,1.75399,3622.6,3622.3,0.2761]
[1736010184187,1.4779,3622.6,3622.2,1.00672557]
[1736010184484,1.4779,3622.6,3622.4,1.00672557]
[1736010184784,0.4862,3622.6,3622.5,0.27609]
[1736010184981,9.56678521,3622.9,3622.8,0.27607]
[1736010185184,4.32158521,3622.9,3622.8,1.28279557]
[1736010186291,0.27603,3623.3,3623.0,0.27605]
[1736010186489,0.27603,3623.3,3623.2,1.00672557]
[1736010188294,0.27603,3623.3,3623.0,0.27605]
[1736010188489,0.9314,3623.4,3622.7,6.4610731]
[1736010188689,0.9314,3623.4,3623.0,2.08054212]
[1736010188891,0.9314,3623.4,3623.3,0.27603]
[1736010189695,0.9314,3623.4,3623.3,2.35657212]
[1736010189993,2.74436574,3643.1,3623.3,2.08054212]
[1736010190195,0.9866,3623.8,3623.3,2.08054212]
[1736010190493,0.9866,3623.8,3623.6,0.276]
[1736010190793,0.9866,3623.8,3623.7,0.276]
[1736010190994,0.276,3623.7,3623.4,0.27602]
[1736010192192,1.2626,3623.8,3623.5,0.27601]
[1736010192793,0.9866,3623.8,3623.6,0.276]
[1736010193993,0.9866,3623.8,3623.7,0.276]
[1736010194400,0.4817,3623.8,3623.7,0.276]
[1736010196196,0.4817,3623.8,3623.6,2.08054212]
[1736010196392,0.7858,3623.7,3623.4,3.48382]
[1736010196593,0.4558,3623.6,3623.4,3.48382]
[1736010197198,0.73181,3623.6,3623.4,3.48382]
[1736010197498,0.27604,3623.1,3622.9,0.27605]
[1736010197799,0.9656,3623.0,3622.8,4.60839098]
[1736010197996,0.9656,3623.0,3622.8,0.27606]
[1736010198194,0.9656,3623.0,3622.7,3.2078]
[1736010198391,0.27607,3622.8,3622.7,3.2078]
[1736010198794,0.9656,3623.0,3622.7,3.2078]
[1736010199100,0.27607,3622.7,3622.6,4.33233098]
[1736010199401,3.2078,3622.7,3622.0,10.02308847]
[1736010199600,3.2078,3622.7,3621.9,4.33233098]
[1736010199897,3.2078,3622.7,3622.1,0.27612]
[1736010199898,0.2761,3622.4,3622.1,0.27612]
[1736010200099,3.2078,3622.7,3621.9,4.33233098]
[1736010200299,0.78311,3622.3,3622.0,0.27612]
[1736010200600,0.507,3622.3,3622.1,0.27611]
[1736010200805,0.507,3622.3,3622.1,2.35666212]
[1736010202995,0.7831,3622.3,3622.1,2.08054212]
[1736010203299,3.2078,3622.7,3622.1,2.08054212]
[1736010203502,0.4823,3622.7,3622.5,2.35663212]
[1736010203799,0.27608,3622.6,3622.3,0.2761]
[1736010204000,0.27609,3622.5,3622.2,2.35665212]
[1736010204202,0.73849,3622.6,3622.2,2.35665212]
[1736010204502,0.27609,3622.5,3622.2,2.08054212]
[1736010205595,0.4624,3622.6,3622.2,2.08054212]
[1736010205791,0.4624,3622.6,3622.4,0.2761]
[1736010208203,0.73848,3622.6,3622.2,2.08054212]
[1736010208404,0.73848,3622.6,3622.2,2.35664212]
[1736010209003,0.73848,3622.6,3622.2,2.08054212]
[1736010209199,0.73848,3622.6,3622.3,0.2761]
[1736010212094,0.4624,3622.6,3622.2,2.08054212]
[1736010212301,0.4624,3622.6,3622.5,2.35663212]
[1736010213404,3.2078,3622.7,3622.5,2.08054212]
[1736010213710,0.4773,3623.1,3622.6,3.2078]
[1736010213903,1.106,3623.3,3623.0,3.2078]
[1736010214102,4.32158521,3623.4,3623.1,2.35658212]
[1736010214500,1.4576,3623.5,3623.4,0.27602]
[1736010214802,1.4576,3623.5,3623.3,0.27602]
[1736010216704,1.73361,3623.5,3623.2,0.27603]
[1736010218108,1.4576,3623.5,3623.0,3.2078]
[1736010218411,0.27604,3623.2,3622.9,0.27606]
[1736010218611,1.4576,3623.5,3622.8,2.08054212]
[1736010218801,0.27603,3623.3,3623.0,0.27605]
[1736010223910,4.6654,3623.5,3622.8,2.08054212]
[1736010224210,0.27602,3623.4,3623.1,0.27604]
[1736010226310,0.27603,3623.3,3623.1,0.27604]
[1736010226713,0.27602,3623.4,3623.1,0.27604]
[1736010226914,4.6654,3623.5,3622.8,2.13644212]
[1736010227120,0.27603,3623.3,3623.0,0.27605]
[1736010228817,0.27603,3623.3,3622.8,2.08054212]
[1736010229018,0.27603,3623.3,3623.0,0.27605]
[1736010229616,0.27603,3623.3,3622.8,2.08054212]
[1736010229814,0.27603,3623.3,3623.1,0.27604]
[1736010231422,0.27602,3623.4,3623.2,0.27603]
[1736010232620,0.27602,3623.4,3623.1,0.27604]
[1736010233019,3.2078,3623.6,3623.1,2.08054212]
[1736010233222,3.7122,3623.6,3623.2,0.27604]
[1736010233417,0.27602,3623.4,3623.2,0.27604]
[1736010233723,0.5044,3623.6,3623.1,2.08054212]
[1736010233920,0.27602,3623.5,3623.3,0.27603]
[1736010234317,0.27602,3623.4,3623.2,0.27603]
[1736010234517,0.5044,3623.6,3623.1,2.08054212]
[1736010234723,0.5044,3623.6,3623.3,0.27602]
[1736010234922,0.5044,3623.6,3623.4,2.08054212]
[1736010235126,0.5044,3623.6,3623.5,0.27601]
[1736010235318,3.71022499,3623.7,3623.4,5.28834212]
[1736010235519,3.24372499,3623.7,3623.6,0.27601]
[1736010236520,1.0147,3624.1,3624.0,0.27597]
[1736010237617,0.5118,3624.1,3624.0,0.27597]
[1736010241024,0.5126,3624.4,3624.3,0.27595]
[1736010243226,0.5029,3624.6,3624.3,3.2078]
[1736010243527,0.5029,3624.6,3624.5,0.27594]
[1736010245124,3.24372499,3624.7,3624.6,0.27593]
[1736010245428,0.4702,3624.8,3624.7,0.27592]
[1736010247722,0.5084,3625.1,3625.0,0.2759]
[1736010248521,3.2078,3625.3,3625.1,0.27589]
[1736010248716,3.2078,3625.3,3625.2,0.27588]
[1736010249725,3.24372499,3625.8,3625.1,3.2078]
[1736010249926,0.5079,3625.9,3625.8,0.27584]
[1736010250225,3.24372499,3626.2,3626.1,0.27581]
[1736010250423,3.75232499,3626.2,3626.1,0.27581]
[1736010251638,0.5086,3626.2,3626.1,0.27581]
[1736010252726,0.9641,3626.5,3626.1,2.08054212]
[1736010252932,3.52575687,3626.7,3626.4,2.08054212]
[1736010252933,3.2078,3626.7,3626.4,2.08054212]
[1736010253328,3.2078,3626.7,3626.6,0.27578]
[1736010253625,4.62445499,3627.2,3627.1,0.27574]
[1736010253626,3.24372499,3627.2,3627.1,0.27574]
[1736010253832,3.24372499,3627.2,3627.1,2.35628212]
[1736010254328,3.2078,3627.7,3627.1,2.35628212]
[1736010254329,0.27569,3627.8,3627.2,0.27573]
[1736010254533,0.75289,3627.8,3627.4,0.27571]
[1736010254836,0.2757,3627.6,3627.2,0.27573]
[1736010255128,0.4772,3627.8,3627.1,2.08054212]
[1736010255323,0.75289,3627.8,3627.4,2.35625212]
[1736010255528,0.4772,3627.8,3627.4,2.35625212]
[1736010255729,0.27569,3627.7,3627.4,2.08054212]
[1736010256225,0.75289,3627.8,3627.4,2.08054212]
[1736010256928,0.2757,3627.7,3627.4,2.08054212]
[1736010257130,0.75289,3627.8,3627.4,2.08054212]
[1736010257433,0.27569,3627.7,3627.4,2.08054212]
[1736010257628,0.75289,3627.8,3627.4,2.35626212]
[1736010257827,0.4772,3627.8,3627.5,0.27571]
[1736010258228,0.4772,3627.8,3627.7,2.35623212]
[1736010258428,3.2078,3628.1,3627.9,0.27568]
[1736010258624,3.2078,3628.1,3627.7,2.08054212]
[1736010258625,3.2078,3628.1,3627.8,0.27568]
[1736010258829,3.2078,3628.1,3627.7,2.08054212]
[1736010259035,4.53561814,3628.5,3627.9,0.27567]
[1736010259241,0.27565,3628.3,3627.9,0.27567]
[1736010259430,0.27565,3628.3,3627.7,2.08054212]
[1736010259431,0.27565,3628.3,3627.8,0.27568]
[1736010259736,0.5049,3628.2,3627.8,0.27568]
[1736010260436,0.5049,3628.2,3627.7,2.08054212]
[1736010260437,0.5049,3628.2,3627.6,0.2757]
[1736010260634,0.27567,3628.0,3627.6,0.2757]
[1736010260937,0.27567,3628.0,3627.5,0.2757]
[1736010261142,1.25717,3628.1,3627.6,0.2757]
[1736010261331,0.27567,3628.0,3627.6,0.2757]
[1736010261839,0.27568,3627.9,3627.5,0.27571]
[1736010262032,0.27567,3628.0,3627.6,0.2757]
[1736010262233,4.1893,3628.1,3627.5,0.2757]
[1736010262436,0.27569,3627.8,3627.5,0.2757]
[1736010263535,4.1893,3628.1,3627.5,0.2757]
[1736010263736,0.2757,3627.7,3627.4,2.35625212]
[1736010263941,0.2757,3627.7,3627.5,0.27571]
[1736010264147,5.2933,3628.1,3627.4,2.08054212]
[1736010264439,5.2933,3628.1,3627.6,0.2757]
[1736010264635,0.27569,3627.8,3627.6,0.2757]
[1736010264838,0.27568,3628.0,3627.7,2.35623212]
[1736010265035,3.6758,3628.1,3627.7,2.08054212]
[1736010265237,3.6758,3628.1,3628.0,2.35621212]
[1736010265238,0.468,3628.1,3628.0,2.35621212]
[1736010267244,0.74366,3628.1,3628.0,2.08054212]
[1736010268238,0.468,3628.1,3627.7,2.08054212]
[1736010268545,0.468,3628.1,3628.0,0.27567]
[1736010268737,0.468,3628.1,3628.0,2.08054212]
[1736010268944,0.74366,3628.1,3628.0,2.08054212]
[1736010269241,0.468,3628.1,3627.7,2.08054212]
[1736010269446,0.74367,3628.1,3627.9,0.27568]
[1736010270144,0.27567,3628.0,3627.8,0.27568]
[1736010270541,0.4811,3627.9,3627.8,0.27568]
[1736010271242,0.27569,3627.8,3627.7,2.08054212]
[1736010271444,0.27569,3627.8,3627.4,0.27572]
[1736010271644,3.6889,3627.9,3627.4,0.27572]
[1736010271645,0.27571,3627.5,3627.4,2.08054212]
[1736010272152,0.27571,3627.5,3627.3,3.48352]
[1736010272153,0.68922,3627.8,3627.0,0.27574]
[1736010272339,0.27574,3627.1,3627.0,2.08054212]
[1736010272542,0.4812,3627.4,3626.7,2.08054212]
[1736010272738,0.4638,3627.3,3626.4,5.28834212]
[1736010272939,3.2078,3626.6,3626.1,2.08054212]
[1736010273242,0.27581,3626.2,3626.1,2.08054212]
[1736010273439,2.5615,3626.5,3625.8,2.08054212]
[1736010273641,0.27583,3626.0,3625.8,2.35637212]
[1736010273845,0.27579,3626.4,3625.9,0.27583]
[1736010274044,0.27581,3626.2,3626.1,2.08054212]
[1736010274648,0.2758,3626.4,3626.1,2.35635212]
[1736010274848,0.2758,3626.3,3626.1,2.08054212]
[1736010275647,2.5615,3626.5,3626.1,2.08054212]
[1736010275843,2.5615,3626.5,3626.3,0.2758]
[1736010276438,2.5615,3626.5,3626.2,0.2758]
[1736010276740,2.83728,3626.5,3626.2,0.2758]
[1736010276938,2.5615,3626.5,3626.1,2.08054212]
[1736010277344,1.4575,3626.5,3626.4,2.35633212]
[1736010278146,1.4575,3626.5,3626.4,2.08054212]
[1736010278449,3.2078,3627.0,3626.4,2.08054212]
[1736010278647,0.5163,3626.9,3626.4,2.08054212]
[1736010278949,0.27577,3626.8,3626.4,2.08054212]
[1736010279150,0.5163,3626.9,3626.4,2.08054212]
[1736010279358,0.27576,3626.8,3626.5,0.27578]
[1736010279543,0.27576,3626.8,3626.4,2.35633212]
[1736010279745,0.27577,3626.7,3626.4,2.35633212]
[1736010280246,0.27577,3626.8,3626.5,0.27578]
[1736010280448,0.27577,3626.8,3626.4,2.08054212]
[1736010280649,0.27578,3626.5,3626.4,2.08054212]
[1736010281347,1.0173,3626.5,3626.4,2.08054212]
[1736010281742,1.0173,3626.5,3626.0,3.2078]
[1736010281946,0.2758,3626.3,3626.1,2.08054212]
[1736010282145,0.5115,3626.2,3626.1,2.08054212]
[1736010282351,0.5115,3626.2,3625.8,2.08054212]
[1736010282550,0.27581,3626.1,3625.8,2.08054212]
[1736010282951,3.7193,3626.2,3625.5,2.08054212]
[1736010283151,3.7193,3626.2,3625.5,2.35639212]
[1736010283453,3.7193,3626.2,3625.6,0.27585]
[1736010283754,3.7193,3626.2,3625.5,2.08054212]
[1736010283954,3.2078,3626.7,3626.1,2.08054212]
[1736010284152,0.2758,3626.4,3626.1,2.08054212]
[1736010284352,0.2758,3626.4,3626.2,0.27581]
[1736010284552,0.76579,3626.5,3626.2,0.27581]
[1736010285045,0.76579,3626.5,3626.1,2.08054212]
[1736010285348,0.2758,3626.3,3626.1,2.08054212]
[1736010287459,0.27581,3626.2,3625.9,0.27583]
[1736010288357,3.2078,3626.3,3625.9,0.27583]
[1736010288561,3.4836,3626.3,3625.9,0.27583]
[1736010288858,3.4836,3626.3,3625.8,2.08054212]
[1736010289058,3.4836,3626.3,3626.0,0.27582]
[1736010289256,0.2758,3626.3,3626.0,0.27582]
[1736010290049,3.2078,3626.4,3625.8,2.08054212]
[1736010290256,3.2078,3626.4,3626.3,0.2758]
[1736010294158,3.2078,3626.4,3626.1,2.08054212]
[1736010294159,0.4685,3626.7,3626.1,2.08054212]
[1736010294364,0.4685,3626.7,3626.6,0.27578]
[1736010295159,1.104,3627.1,3626.5,2.08054212]
[1736010295359,1.37974,3627.1,3627.0,2.08054212]
[1736010295561,1.104,3627.1,3627.0,2.08054212]
[1736010295758,1.104,3627.1,3627.0,2.35629212]
[1736010296064,0.9843,3627.4,3627.3,0.27572]
[1736010296264,1.26002,3627.4,3627.3,2.08054212]
[1736010296461,0.9843,3627.4,3627.3,2.08054212]
[1736010297061,0.9843,3627.4,3627.3,2.35626212]
[1736010297263,0.9843,3627.4,3627.3,0.27572]
[1736010297661,0.9843,3627.4,3627.0,2.08054212]
[1736010297865,0.27574,3627.1,3626.8,0.27576]
[1736010298167,3.2078,3627.3,3626.4,2.08054212]
[1736010298364,0.27576,3626.9,3626.6,0.27577]
[1736010298669,0.27576,3626.9,3626.4,2.08054212]
[1736010298670,0.491,3626.8,3626.7,0.27577]
[1736010298864,0.491,3626.8,3626.4,2.08054212]
[1736010299066,1.0035,3626.7,3626.4,2.08054212]
[1736010299368,1.0035,3626.7,3626.6,0.27578]
[1736010300766,1.0035,3626.7,3626.1,2.08054212]
[1736010301067,0.27582,3626.0,3625.9,3.2078]
[1736010301261,0.27583,3625.9,3625.8,4.33233098]
[1736010301466,0.27583,3625.9,3625.7,4.33233098]
[1736010301467,0.27584,3625.8,3625.7,4.33233098]
[1736010301668,0.27584,3625.8,3625.7,3.55333098]
[1736010301669,0.78014,3625.8,3625.7,3.55333098]
[1736010302367,0.5043,3625.8,3625.5,6.51424804]
[1736010302568,3.48365,3625.7,3625.2,2.08054212]
[1736010303072,3.48365,3625.7,3625.3,0.27587]
[1736010303272,0.27586,3625.5,3625.2,2.35642212]
[1736010303572,3.2078,3625.7,3625.2,2.08054212]
[1736010303871,0.27585,3625.6,3625.3,0.27587]
[1736010304069,3.2078,3625.7,3625.2,2.08054212]
[1736010304266,3.2078,3625.7,3625.5,2.08054212]
[1736010304471,3.2078,3625.7,3625.2,2.08054212]
[1736010304874,0.78014,3625.8,3625.5,0.27586]
[1736010305364,0.5043,3625.8,3625.2,2.08054212]
[1736010305565,3.2078,3625.3,3624.6,2.08054212]
[1736010305769,1.104,3625.2,3624.6,2.08054212]
[1736010306074,0.497,3625.1,3624.9,2.35644212]
[1736010307178,3.2078,3625.3,3625.2,0.27588]
[1736010307371,2.13752865,3625.7,3625.6,0.27585]
[1736010307868,4.81858521,3626.1,3625.7,0.27585]
[1736010307869,2.13752865,3625.8,3625.7,0.27585]
[1736010308376,2.13752865,3625.8,3625.5,2.08054212]
[1736010308570,2.13752865,3625.8,3625.7,0.27585]
[1736010309175,0.497,3626.1,3626.0,0.27582]
[1736010313573,3.6894,3626.3,3626.2,0.27581]
[1736010313874,6.44932865,3626.7,3626.6,0.27578]
[1736010314383,2.13752865,3626.7,3626.6,0.27578]
[1736010314679,2.13752865,3626.8,3626.5,5.28834212]
[1736010314978,2.13752865,3626.8,3626.7,0.27577]
[1736010315890,3.42224865,3627.4,3627.1,0.27573]
[1736010316384,3.42224865,3627.4,3626.9,2.08054212]
[1736010316574,3.42224865,3627.4,3627.1,0.27573]
[1736010316888,3.14652865,3627.4,3627.1,0.27573]
[1736010317482,3.14652865,3627.4,3626.9,2.08054212]
[1736010317684,2.13752865,3627.4,3627.3,0.27572]
[1736010319180,2.13752865,3627.4,3627.3,0.77042]
[1736010319886,9.11973513,3628.0,3627.6,0.2757]
[1736010319887,2.41321865,3627.8,3627.6,0.2757]
[1736010320181,2.13752865,3627.8,3627.6,0.2757]
[1736010320378,2.13752865,3627.8,3627.3,0.4947]
[1736010320578,2.13752865,3627.8,3627.6,0.2757]
[1736010320579,2.41321865,3627.8,3627.6,0.2757]
[1736010320781,6.94162499,3628.0,3627.6,0.2757]
[1736010320782,0.27568,3627.9,3627.6,0.2757]
[1736010320982,0.27569,3627.8,3627.5,2.35625212]
[1736010321176,5.83542865,3628.0,3627.3,0.27572]
[1736010321482,0.2757,3627.6,3627.3,0.27572]
[1736010322384,0.7651,3627.6,3627.2,2.08054212]
[1736010322685,0.7651,3627.6,3627.5,0.27571]
[1736010322686,0.4894,3627.6,3627.5,0.27571]
[1736010327487,4.8009,3628.0,3627.5,2.08054212]
[1736010327691,4.8009,3628.0,3627.8,0.27568]
[1736010327891,3.6979,3628.0,3627.8,0.27568]
[1736010328389,3.6979,3628.0,3627.5,2.08054212]
[1736010328594,3.6979,3628.0,3627.9,0.27568]
[1736010329188,3.6979,3628.0,3626.9,2.08054212]
[1736010329391,3.6979,3628.0,3626.9,5.97773212]
[1736010329590,0.27568,3627.9,3627.0,0.27575]
[1736010329888,0.27568,3627.9,3627.6,0.27569]
[1736010330487,0.27568,3627.9,3627.7,0.27569]
[1736010330692,0.76578,3628.0,3627.2,2.08054212]
[1736010330892,0.76578,3628.0,3627.8,0.27569]
[1736010331385,0.76578,3628.0,3627.2,2.08054212]
[1736010331386,0.27568,3627.9,3627.2,2.08054212]
[1736010331593,0.27568,3627.9,3627.6,0.2757]
[1736010332287,3.97357,3628.0,3627.2,2.76987212]
[1736010332493,3.6979,3628.0,3627.8,0.27568]
[1736010333184,0.4901,3628.0,3627.8,0.27568]
[1736010333797,0.27568,3627.9,3627.7,0.27569]
[1736010334089,0.2757,3627.7,3627.4,0.27571]
[1736010334388,0.2757,3627.7,3627.2,2.08054212]
[1736010334389,3.6979,3628.0,3627.2,2.08054212]
[1736010334594,0.2757,3627.7,3627.4,0.27571]
[1736010334887,0.6892,3627.9,3626.9,3.2078]
[1736010335091,5.77844212,3628.0,3626.6,2.08054212]
[1736010335092,3.2078,3627.3,3626.6,2.08054212]
[1736010335291,0.27574,3627.1,3626.6,0.27577]
[1736010335495,0.27576,3626.9,3626.4,0.27579]
[1736010335691,1.4781,3627.2,3626.7,0.27577]
[1736010335891,0.27575,3627.0,3626.8,0.27576]
[1736010336892,1.4781,3627.2,3626.8,0.27576]
[1736010337091,0.27575,3627.0,3626.8,0.27576]
[1736010337693,0.27576,3626.9,3626.3,2.08054212]
[1736010337896,0.27575,3627.0,3626.8,0.27576]
[1736010338093,0.27575,3627.0,3626.3,2.08054212]
[1736010338493,0.27575,3627.0,3626.8,0.27576]
[1736010338896,1.4781,3627.2,3626.3,2.08054212]
[1736010339095,0.27574,3627.1,3626.9,0.27575]
[1736010339290,1.4781,3627.2,3626.3,2.08054212]
[1736010339591,1.4781,3627.2,3626.6,2.08054212]
[1736010339789,1.4781,3627.2,3627.1,0.27574]
[1736010340396,1.0032,3627.2,3627.1,0.27574]
[1736010340596,3.24052865,3627.7,3627.6,0.2757]
[1736010341696,2.13752865,3627.7,3627.6,0.2757]
[1736010341897,1.4779,3627.8,3627.7,0.27569]
[1736010344798,0.27569,3627.7,3627.5,0.2757]
[1736010344995,1.75359,3627.8,3627.6,0.2757]
[1736010345191,1.4779,3627.8,3627.5,0.2757]
[1736010345396,0.2757,3627.7,3627.5,0.2757]
[1736010345600,1.75359,3627.8,3627.5,0.2757]
[1736010346202,1.75359,3627.8,3627.2,2.08054212]
[1736010346203,5.97758212,3627.7,3626.8,3.2078]
[1736010346403,3.2078,3627.3,3626.6,2.57024212]
[1736010346705,0.4904,3627.2,3627.0,0.27574]
[1736010346903,0.4904,3627.2,3626.9,2.08054212]
[1736010347202,0.9963,3627.7,3627.0,3.2078]
[1736010347404,0.9963,3627.7,3627.6,0.2757]
[1736010348301,0.4904,3627.7,3627.6,0.2757]
[1736010348501,3.2078,3627.8,3627.6,2.08054212]
[1736010348700,3.2078,3627.8,3627.7,0.27569]
[1736010350102,0.5101,3628.3,3627.6,5.28834212]
[1736010350300,3.7044,3628.4,3628.2,2.08054212]
[1736010350501,3.2078,3628.4,3628.3,0.27565]
[1736010351707,4.53184865,3628.7,3628.6,0.27562]
[1736010351708,3.42884865,3628.7,3628.6,0.27562]
[1736010352108,3.15322865,3628.7,3628.6,0.27562]
[1736010352408,1.0157,3628.7,3628.6,0.27562]
[1736010352906,1.0157,3628.7,3628.5,0.27563]
[1736010353109,1.0157,3628.7,3628.2,2.08054212]
[1736010353304,1.0157,3628.7,3628.5,0.27563]
[1736010353610,1.0157,3628.7,3628.5,1e-08]
[1736010353910,1.29132,3628.7,3628.5,1e-08]
[1736010354208,1.29132,3628.7,3628.5,0.27563001]
[1736010354611,1.0157,3628.7,3628.5,1e-08]
[1736010355006,1.0157,3628.7,3628.6,0.27562]
[1736010355901,1.0157,3628.7,3628.6,1e-08]
[1736010356098,2.13752865,3628.8,3628.7,0.27562]
[1736010356300,2.13752865,3628.8,3628.7,0.76392]
[1736010358303,6.42873513,3629.4,3628.7,0.4883]
[1736010358304,0.27557,3629.3,3628.7,0.4883]
[1736010358506,0.27557,3629.3,3629.1,0.27559]
[1736010358705,1.0069,3629.4,3629.1,0.27559]
[1736010358907,1.28247,3629.4,3629.1,0.27559]
[1736010359313,1.0069,3629.4,3628.8,2.58964212]
[1736010359510,1.28246,3629.4,3629.1,0.27558]
[1736010360012,1.28246,3629.4,3628.8,2.58964212]
[1736010360013,0.27558,3629.3,3629.0,0.27559]
[1736010361008,6.35222865,3629.4,3628.8,2.58964212]
[1736010361009,6.35222865,3629.4,3629.2,0.27558]
[1736010362312,1.28247,3629.4,3629.1,0.27558]
[1736010362512,1.28247,3629.4,3628.8,2.58964212]
[1736010362513,0.27558,3629.3,3629.0,0.27559]
[1736010363007,1.28247,3629.4,3629.1,0.27559]
[1736010363206,1.0069,3629.4,3629.1,0.27559]
[1736010363414,0.27557,3629.3,3629.1,0.27559]
[1736010363912,1.0069,3629.4,3629.2,0.27558]
[1736010364413,1.28246,3629.4,3629.2,0.27558]
[1736010364609,1.0069,3629.4,3629.2,0.27558]
[1736010365614,1.28246,3629.4,3628.8,2.58964212]
[1736010365813,0.27557,3629.3,3628.8,2.58964212]
[1736010366011,0.27557,3629.3,3629.0,0.27559]
[1736010366412,0.27558,3629.2,3628.9,0.2756]
[1736010367617,3.2078,3629.2,3628.6,1e-08]
[1736010367815,3.2078,3629.2,3628.9,0.2756]
[1736010368021,0.27559,3629.1,3628.7,0.27562]
[1736010368318,3.2078,3629.2,3628.6,1e-08]
[1736010368617,0.27562,3628.7,3628.6,1e-08]
[1736010368814,0.27561,3628.8,3628.6,1e-08]
[1736010369013,0.73202,3628.7,3628.6,1e-08]
[1736010369218,1.20042,3628.7,3628.6,1e-08]
[1736010369512,0.9248,3628.7,3628.6,1e-08]
[1736010369716,3.2078,3628.8,3628.6,1e-08]
[1736010369911,1.5734,3629.0,3628.9,0.2756]
[1736010370311,3.06232865,3629.2,3629.0,0.27559]
[1736010371126,0.9248,3629.2,3629.0,0.27559]
[1736010371617,0.9248,3629.2,3628.8,2.08054212]
[1736010371822,0.9248,3629.2,3629.1,0.27559]
[1736010372622,3.2078,3629.5,3629.4,0.27556]
[1736010374331,3.2078,3629.5,3629.4,2.35610212]
[1736010378254,4.32158521,3630.7,3629.4,2.35610212]
[1736010378255,3.2078,3630.1,3630.0,0.27552]
[1736010378544,3.48331,3630.1,3630.0,2.08054212]
[1736010378744,3.39071948,3630.3,3630.1,0.27551]
[1736010378945,1.25319083,3630.3,3630.1,0.27551]
[1736010379546,0.2755,3630.2,3629.7,5.56388212]
[1736010379745,3.2078,3630.2,3629.7,2.08054212]
[1736010380043,0.27553,3629.9,3629.7,2.08054212]
[1736010380345,0.27551,3630.1,3629.7,2.08054212]
[1736010380549,3.2078,3630.2,3629.7,2.08054212]
[1736010380758,0.27552,3630.0,3629.7,2.35608212]
[1736010381442,3.2078,3630.2,3629.7,2.08054212]
[1736010381642,0.27552,3630.1,3629.8,0.27553]
[1736010382442,3.2078,3630.2,3629.7,2.08054212]
[1736010382642,3.48331,3630.2,3629.9,0.27553]
[1736010383046,3.2078,3630.2,3629.7,2.08054212]
[1736010383236,3.2078,3630.2,3630.1,0.27551]
[1736010384449,0.00529083,3630.3,3630.2,0.2755]
[1736010384649,3.24372499,3631.0,3630.2,2.08054212]
[1736010384843,5.34532865,3631.1,3631.0,0.27544]
[1736010385448,5.34532865,3631.1,3631.0,0.74184]
[1736010385952,4.32158521,3631.4,3631.0,7.54694212]
[1736010386143,2.40229664,3631.7,3631.6,0.2754]
[1736010386346,2.40229664,3631.7,3631.6,5.53848424]
[1736010386347,0.45245664,3631.7,3631.6,5.53848424]
[1736010386543,2.15305601,3632.2,3632.1,0.27536]
[1736010386850,2.15305601,3632.2,3632.1,5.56370212]
[1736010387347,0.92802601,3632.2,3632.1,10.56370212]
[1736010387550,6.01e-06,3632.2,3632.1,5.56370212]
[1736010387743,6.01e-06,3632.2,3632.1,10.56370212]